bitfinex/quotes_BTCUSD_20250529
["timestamp","ask_amount","ask_price","bid_price","bid_amount"]
[1748537198353,0.21801301,106970.0,106960.0,0.3808979]
[1748537198638,0.21801301,106970.0,106960.0,0.38089778]
[1748537198842,0.21801301,106970.0,106960.0,0.36340777]
[1748537199053,0.2086646,106970.0,106960.0,0.39024674]
[1748537199271,0.2086646,106970.0,106960.0,0.39024694]
[1748537199272,0.21801292,106970.0,106960.0,0.39024694]
[1748537199480,0.2086646,106970.0,106960.0,0.38089818]
[1748537200121,0.2086646,106970.0,106960.0,0.37154925]
[1748537200334,0.2086646,106970.0,106960.0,0.38089909]
[1748537200550,0.21801301,106970.0,106960.0,0.39024794]
[1748537200770,0.21801301,106970.0,106960.0,0.38089909]
[1748537201217,0.2086646,106970.0,106960.0,1.01829927]
[1748537201431,0.003,106970.0,106960.0,7.53833578]
[1748537201649,0.003,106970.0,106960.0,5.9301956]
[1748537201855,0.003,106970.0,106960.0,5.02754436]
[1748537202285,0.0009541,106970.0,106960.0,5.66195369]
[1748537202505,0.22429729,107000.0,106990.0,0.25081357]
[1748537202729,0.19640916,107000.0,106990.0,0.11152634]
[1748537202945,0.23910916,107000.0,106990.0,0.38536416]
[1748537203154,0.23910916,107000.0,106990.0,0.4028341]
[1748537203369,0.19640916,107000.0,106990.0,0.61365479]
[1748537203592,0.00014758,107000.0,106990.0,1.29667739]
[1748537203852,0.2150989,107000.0,106990.0,1.30479682]
[1748537204067,0.2150989,107000.0,106990.0,1.29234287]
[1748537204068,0.03752863,107000.0,106990.0,1.29234287]
[1748537204276,0.03752863,107000.0,106990.0,1.31106971]
[1748537204277,0.04687407,107000.0,106990.0,1.31106971]
[1748537204554,0.04687407,107000.0,106990.0,0.67366953]
[1748537204802,0.03752907,107000.0,106990.0,0.68301585]
[1748537205040,0.03752907,107000.0,106990.0,0.6923619]
[1748537205504,0.04687477,107000.0,106990.0,0.6923619]
[1748537205733,0.22444556,107000.0,106990.0,0.67366158]
[1748537205957,0.20575477,107000.0,106990.0,0.62302255]
[1748537206199,0.20575477,107000.0,106990.0,0.66431544]
[1748537206433,0.20575477,107000.0,106990.0,0.82181609]
[1748537206643,0.21510012,107000.0,106990.0,0.80312355]
[1748537206848,0.22444591,107000.0,106990.0,0.82712827]
[1748537207052,0.21510056,107000.0,106990.0,0.82712827]
[1748537207471,0.21510056,107000.0,106990.0,0.82712135]
[1748537207687,0.21510056,107000.0,106990.0,0.82711743]
[1748537208112,0.21510056,107000.0,106990.0,0.81776975]
[1748537208246,0.20567495,107000.0,106990.0,0.82711615]
[1748537208458,0.20567495,107000.0,106990.0,0.83646246]
[1748537208832,0.20567495,107000.0,106990.0,0.14475133]
[1748537209064,0.20567495,107000.0,106990.0,0.01872684]
[1748537209065,0.32230346,107000.0,106990.0,0.01872684]
[1748537209287,0.21501222,106970.0,106960.0,0.22832132]
[1748537209502,0.01869568,106970.0,106960.0,0.68915331]
[1748537209709,0.03739215,106970.0,106960.0,0.6404334]
[1748537209904,0.22436045,106970.0,106960.0,0.60432745]
[1748537210133,0.22436045,106970.0,106960.0,0.33174662]
[1748537210345,0.18696291,106990.0,106980.0,0.01454085]
[1748537210568,0.18696291,106990.0,106980.0,0.4247852]
[1748537210776,0.18696291,106990.0,106980.0,0.42362059]
[1748537210984,0.18696291,106990.0,106980.0,0.43294245]
[1748537211185,0.18696291,106990.0,106980.0,0.41840172]
[1748537211399,0.23056291,106990.0,106980.0,0.12716172]
[1748537211612,0.23056291,106990.0,106980.0,0.42040172]
[1748537212446,0.23056291,106990.0,106980.0,0.42240172]
[1748537213057,0.23056291,106990.0,106980.0,0.4224098]
[1748537213517,0.23056291,106990.0,106980.0,0.1311698]
[1748537213714,0.23056291,106990.0,106980.0,0.33135585]
[1748537214390,0.23056291,106990.0,106980.0,0.3139094]
[1748537214742,0.23056291,106990.0,106980.0,0.04012089]
[1748537214942,0.23056291,106990.0,106980.0,0.33136089]
[1748537215147,0.23056291,106990.0,106980.0,0.33136248]
[1748537215771,0.23056291,106990.0,106980.0,0.33136257]
[1748537216136,0.23056291,106990.0,106980.0,0.33136382]
[1748537216765,0.23056291,106990.0,106980.0,0.3139094]
[1748537216976,0.23056291,106990.0,106980.0,0.33136382]
[1748537218324,0.23056291,106990.0,106980.0,0.04012722]
[1748537218498,0.23056291,106990.0,106980.0,0.33136722]
[1748537219153,0.23056291,106990.0,106980.0,0.04012722]
[1748537219353,0.23056291,106990.0,106980.0,0.33137094]
[1748537220602,0.23056291,106990.0,106980.0,0.31270154]
[1748537220817,0.23056291,106990.0,106980.0,0.29524]
[1748537221051,0.23056291,106990.0,106980.0,0.31270701]
[1748537221901,0.23056291,106990.0,106980.0,0.31270705]
[1748537222330,0.20816291,106990.0,106980.0,0.31270705]
[1748537222555,0.10941254,106990.0,106980.0,1.27725358]
[1748537222771,0.23366501,106990.0,106980.0,1.1740407]
[1748537222992,0.21497299,106990.0,106980.0,0.7329388]
[1748537223213,0.20562659,106990.0,106980.0,0.51424052]
[1748537223416,0.20562659,106990.0,106980.0,0.70119145]
[1748537223627,0.20562659,106990.0,106980.0,0.71054018]
[1748537224094,0.20562659,106990.0,106980.0,0.71053997]
[1748537224590,0.20562659,106990.0,106980.0,0.72893065]
[1748537224800,0.20562659,106990.0,106980.0,0.72893179]
[1748537225186,0.20562659,106990.0,106980.0,0.53562384]
[1748537225422,0.20562659,106990.0,106980.0,0.44624319]
[1748537225627,0.22712659,106990.0,106980.0,0.42215277]
[1748537225832,0.20562659,106990.0,106980.0,0.44325277]
[1748537226043,0.20562659,106990.0,106980.0,0.44624405]
[1748537226463,0.02803876,106990.0,106980.0,1.31317721]
[1748537226677,0.00941311,107000.0,106990.0,0.25196709]
[1748537226921,0.0281032,107000.0,106990.0,1.01022613]
[1748537227153,0.03744881,107000.0,106990.0,1.01022613]
[1748537227402,0.03744873,107000.0,106990.0,1.01022613]
[1748537227616,0.04679434,107000.0,106990.0,1.01022613]
[1748537227849,0.03744873,107000.0,106990.0,1.01022613]
[1748537228279,0.0281032,107000.0,106990.0,1.01022335]
[1748537228485,0.23371031,107000.0,106990.0,0.35802152]
[1748537228690,0.2337111,107000.0,106990.0,0.35802152]
[1748537229366,0.22436531,107000.0,106990.0,0.35802152]
[1748537229571,0.22436531,107000.0,106990.0,0.34867556]
[1748537230192,0.22436522,107000.0,106990.0,0.34867556]
[1748537230443,0.22436522,107000.0,106990.0,0.34867539]
[1748537230870,0.23371101,107000.0,106990.0,0.35802179]
[1748537231104,0.23371101,107000.0,106990.0,0.34055805]
[1748537231317,0.23371101,107000.0,106990.0,0.35802168]
[1748537231534,0.23371101,107000.0,106990.0,0.34867528]
[1748537231742,0.23371101,107000.0,106990.0,0.33121165]
[1748537231944,0.23371101,107000.0,106990.0,0.34867351]
[1748537232374,0.22436574,107000.0,106990.0,0.34867351]
[1748537232594,0.22436574,107000.0,106990.0,0.35801991]
[1748537233001,0.21501995,107000.0,106990.0,0.34867351]
[1748537233203,0.21501995,107000.0,106990.0,1.29596623]
[1748537233408,0.22436574,107000.0,106990.0,1.30222]
[1748537233626,0.22436565,107000.0,106990.0,1.28475814]
[1748537233866,0.22436565,107000.0,106990.0,1.3022182]
[1748537234115,0.21501995,107000.0,106990.0,1.31156434]
[1748537234334,0.22436565,107000.0,106990.0,0.65547123]
[1748537234562,0.2150203,107000.0,106990.0,0.65547123]
[1748537234784,0.20567477,107000.0,106990.0,0.43424481]
[1748537235229,0.20567477,107000.0,106990.0,0.43694807]
[1748537235474,0.20567477,107000.0,106990.0,0.1270436]
[1748537235715,0.21202916,107000.0,106990.0,0.11250275]
[1748537235953,0.31884916,107000.0,106990.0,0.30961885]
[1748537236183,0.22812916,107000.0,106990.0,0.01845885]
[1748537236408,0.31784916,107000.0,106990.0,0.30962092]
[1748537236836,0.31784916,107000.0,106990.0,0.01846294]
[1748537237094,0.31784916,107000.0,106990.0,0.30962294]
[1748537237317,0.31784916,107000.0,106990.0,0.30962387]
[1748537237791,0.31784916,107000.0,106990.0,0.01846452]
[1748537238053,0.31784916,107000.0,106990.0,0.2922]
[1748537240506,0.31784916,107000.0,106990.0,0.29224]
[1748537240927,0.31784916,107000.0,106990.0,0.00104]
[1748537241134,0.31784916,107000.0,106990.0,0.29224]
[1748537244554,0.31784916,107000.0,106990.0,0.00104]
[1748537244765,0.34590216,107000.0,106990.0,0.29224]
[1748537245633,0.34590216,107000.0,106990.0,0.30970494]
[1748537246268,0.34586216,107000.0,106990.0,0.30970494]
[1748537246920,0.34586216,107000.0,106990.0,0.30970574]
[1748537247346,0.33076216,107000.0,106990.0,0.30970573]
[1748537247567,0.34696216,107000.0,106990.0,0.29224]
[1748537247781,0.34696216,107000.0,106990.0,0.30970603]
[1748537248239,0.33076216,107000.0,106990.0,0.30970603]
[1748537248466,0.33076216,107000.0,106990.0,0.29224]
[1748537248687,0.33076216,107000.0,106990.0,0.30970665]
[1748537249571,0.33076216,107000.0,106990.0,0.30970752]
[1748537249780,0.33076216,107000.0,106990.0,0.30970721]
[1748537250409,0.34576216,107000.0,106990.0,0.30970721]
[1748537250625,0.34576216,107000.0,106990.0,0.29224]
[1748537251914,0.68576216,107000.0,106990.0,0.00104]
[1748537252180,0.77681611,107000.0,106990.0,0.00104]
[1748537252850,0.77681611,107000.0,106990.0,4e-05]
[1748537253486,0.77781611,107000.0,106990.0,4e-05]
[1748537254110,0.77881611,107000.0,106990.0,4e-05]
[1748537257396,0.68813611,107000.0,106990.0,4e-05]
[1748537257613,0.77881611,107000.0,106990.0,4e-05]
[1748537261606,1.18257611,107000.0,106990.0,4e-05]
[1748537263115,1.18009942,107000.0,106990.0,4e-05]
[1748537264793,1.17909942,107000.0,106990.0,4e-05]
[1748537265207,1.18109942,107000.0,106990.0,4e-05]
[1748537265626,1.24457954,107000.0,106990.0,4e-05]
[1748537265832,0.20566451,106970.0,106960.0,0.3812798]
[1748537266046,0.29634451,106970.0,106960.0,0.3812798]
[1748537266656,0.31224451,106970.0,106960.0,0.3812798]
[1748537267080,0.31224451,106970.0,106960.0,0.3710798]
[1748537267907,0.27224451,106970.0,106960.0,0.3710798]
[1748537268111,0.30030251,106970.0,106960.0,0.3710798]
[1748537268312,0.31899872,106970.0,106960.0,0.3710798]
[1748537270382,0.32850997,106970.0,106960.0,0.3710798]
[1748537270780,0.32850997,106970.0,106960.0,0.3866798]
[1748537271918,0.32850997,106970.0,106960.0,0.31184]
[1748537272603,0.32850997,106970.0,106960.0,0.29624]
[1748537273693,0.32850997,106970.0,106960.0,0.31224]
[1748537275000,0.28850997,106970.0,106960.0,0.31224]
[1748537275387,0.28850997,106970.0,106960.0,0.31228]
[1748537277779,0.28798709,106970.0,106960.0,0.31228]
[1748537278316,0.28798709,106970.0,106960.0,0.29628]
[1748537281450,0.28737111,106970.0,106960.0,0.29628]
[1748537281879,0.28737111,106970.0,106960.0,0.00508]
[1748537282089,0.28737111,106970.0,106960.0,0.29628]
[1748537282090,0.24737111,106970.0,106960.0,0.29628]
[1748537283678,0.24737111,106970.0,106960.0,0.31268]
[1748537284131,0.14079111,106970.0,106960.0,0.31268]
[1748537284362,0.11273311,106970.0,106960.0,0.31451973]
[1748537284577,0.23370138,106980.0,106970.0,0.0314]
[1748537284793,0.20564582,106980.0,106970.0,0.1236192]
[1748537285008,0.20564582,106980.0,106970.0,0.15058328]
[1748537285249,0.20564582,106980.0,106970.0,0.14115095]
[1748537285692,0.20564582,106980.0,106970.0,0.33746766]
[1748537285900,0.20564582,106980.0,106970.0,0.1409857]
[1748537286133,0.20564582,106980.0,106970.0,0.14315083]
[1748537286766,0.20564582,106980.0,106970.0,0.1419857]
[1748537287432,0.21497142,106990.0,106980.0,0.59148632]
[1748537287676,0.01869219,106990.0,106980.0,3.04739945]
[1748537287899,0.01869114,107000.0,106990.0,0.21497255]
[1748537288113,0.02803693,107000.0,106990.0,0.34031669]
[1748537288323,0.01869062,107000.0,106990.0,0.34966274]
[1748537288519,0.21495211,107000.0,106990.0,0.35485771]
[1748537289155,0.20560693,107000.0,106990.0,0.3455114]
[1748537289371,0.20760693,107000.0,106990.0,0.3455114]
[1748537289590,0.20960693,107000.0,106990.0,0.3455114]
[1748537289797,0.04138105,107000.0,106990.0,0.35485759]
[1748537290020,0.21895254,107000.0,106990.0,0.34551128]
[1748537290273,0.0320358,107000.0,106990.0,0.35485759]
[1748537290484,0.21895168,107000.0,106990.0,1.05775126]
[1748537290701,0.004,107000.0,106990.0,5.51139662]
[1748537290935,0.004,107000.0,106990.0,5.48201562]
[1748537291650,0.23270023,107010.0,107000.0,0.23670684]
[1748537291891,0.03645637,107010.0,107000.0,0.63121604]
[1748537292123,0.21493229,107010.0,107000.0,0.63338217]
[1748537292361,0.21493229,107010.0,107000.0,0.62403629]
[1748537292807,0.00934413,107010.0,107000.0,0.65307235]
[1748537293022,0.03737757,107010.0,107000.0,1.29047253]
[1748537293428,0.03737757,107010.0,107000.0,0.67142095]
[1748537293677,0.03737757,107010.0,107000.0,0.67242095]
[1748537293914,0.01868835,107010.0,107000.0,1.30982113]
[1748537294174,0.20566686,107030.0,107020.0,0.22782499]
[1748537294392,0.29630686,107030.0,107020.0,0.41369395]
[1748537294604,0.19632404,107030.0,107020.0,0.41369395]
[1748537294830,0.28690187,107030.0,107020.0,0.39869395]
[1748537295076,0.28690187,107030.0,107020.0,0.09105395]
[1748537295295,0.28690187,107030.0,107020.0,0.29104]
[1748537295518,0.28790187,107030.0,107020.0,0.29104]
[1748537295727,0.28990187,107030.0,107020.0,0.29104]
[1748537296597,0.19622482,107020.0,107010.0,0.0166]
[1748537296810,0.19622482,107020.0,107010.0,0.39869395]
[1748537297443,0.19622482,107020.0,107010.0,0.41419395]
[1748537297874,0.2055686,107020.0,107010.0,0.62497805]
[1748537298086,0.21491264,107020.0,107010.0,0.63432279]
[1748537298300,0.21583264,107020.0,107010.0,0.63432279]
[1748537298511,0.20648886,107020.0,107010.0,0.61563322]
[1748537298722,0.20648886,107020.0,107010.0,0.63432279]
[1748537298932,0.20548886,107020.0,107010.0,0.63432279]
[1748537299138,0.18684603,107040.0,107030.0,0.04574085]
[1748537299368,0.21536387,107040.0,107030.0,0.63450606]
[1748537299596,0.12849962,107040.0,107030.0,0.64268667]
[1748537300232,0.00983342,107040.0,107030.0,0.64268667]
[1748537300490,0.10047342,107040.0,107030.0,0.64268667]
[1748537300698,0.11915749,107040.0,107030.0,0.64268667]
[1748537301346,0.31100352,107040.0,107030.0,0.61465829]
[1748537301582,0.31100352,107040.0,107030.0,0.63334428]
[1748537301583,0.30800352,107040.0,107030.0,0.63334428]
[1748537301822,0.29766183,107040.0,107030.0,0.62400137]
[1748537302032,0.29866183,107040.0,107030.0,0.62400137]
[1748537302244,0.28931988,107040.0,107030.0,0.4127948]
[1748537302465,0.28931988,107040.0,107030.0,0.1217948]
[1748537302676,0.19867988,107040.0,107030.0,0.4127548]
[1748537302895,0.28923988,107040.0,107030.0,0.4127548]
[1748537303540,0.28923988,107040.0,107030.0,0.39821395]
[1748537303754,0.28923988,107040.0,107030.0,0.38201395]
[1748537304378,0.28923988,107040.0,107030.0,0.39711395]
[1748537305019,0.28923988,107040.0,107020.0,0.0164]
[1748537305020,0.19620649,107030.0,107020.0,0.0164]
[1748537305249,0.19622482,107020.0,107010.0,0.01644]
[1748537305513,0.19622482,107020.0,107010.0,0.4129548]
[1748537305953,0.19622482,107020.0,107010.0,0.10749395]
[1748537306169,0.19622482,107020.0,107010.0,0.38201395]
[1748537307926,0.19622482,107020.0,107010.0,0.00304]
[1748537307927,0.21162482,107020.0,107010.0,0.00304]
[1748537308140,0.21162482,107020.0,107010.0,0.29396]
[1748537308350,0.30218482,107020.0,107010.0,0.29396]
[1748537309231,0.30218482,107020.0,107010.0,0.29596]
[1748537309445,0.30218482,107020.0,107010.0,0.29396]
[1748537310044,0.30218482,107020.0,107010.0,0.00304]
[1748537310251,0.30218482,107020.0,107010.0,0.29396]
[1748537310633,0.30218482,107020.0,107010.0,0.29096]
[1748537310836,0.21162482,107020.0,107010.0,0.29196]
[1748537311076,0.30218482,107020.0,107010.0,0.29196]
[1748537311708,0.21162482,107020.0,107010.0,0.29196]
[1748537311918,0.19622482,107020.0,107010.0,0.29196]
[1748537312140,0.19622482,107020.0,107010.0,0.56991237]
[1748537312357,0.28678482,107020.0,107010.0,0.39831395]
[1748537312568,0.19622482,107020.0,107010.0,0.39831395]
[1748537312775,0.28678482,107020.0,107010.0,0.39831395]
[1748537314290,0.2055686,107020.0,107010.0,0.59975322]
[1748537314496,0.2961286,107020.0,107010.0,0.62429796]
[1748537314700,0.27744095,107020.0,107010.0,0.61495322]
[1748537314910,0.27744095,107020.0,107010.0,0.62429814]
[1748537315127,0.18686349,107030.0,107020.0,0.22686584]
[1748537315348,0.30545239,107030.0,107020.0,0.34246366]
[1748537315566,0.29610966,107030.0,107020.0,0.32377575]
[1748537315814,0.28676666,107030.0,107020.0,0.1368948]
[1748537316030,0.01917615,107040.0,107030.0,0.04584085]
[1748537316271,0.20602174,107040.0,107030.0,0.63751535]
[1748537316483,0.01917519,107040.0,107030.0,0.64569649]
[1748537316690,0.00983333,107040.0,107030.0,0.65503905]
[1748537316928,0.11907697,107040.0,107030.0,0.65503905]
[1748537317349,0.12841909,107040.0,107030.0,0.65503905]
[1748537317560,0.32460733,107040.0,107030.0,0.65503905]
[1748537317773,0.23404803,107040.0,107030.0,0.65503905]
[1748537317984,0.32460803,107040.0,107030.0,0.64569649]
[1748537318238,0.30592439,107040.0,107030.0,0.64569649]
[1748537318477,0.31092439,107040.0,107030.0,0.6427071]
[1748537318695,0.28924006,107040.0,107030.0,0.60136714]
[1748537318900,0.28089776,107040.0,107030.0,0.3999228]
[1748537319318,0.19033776,107040.0,107030.0,0.1090428]
[1748537319568,0.19033776,107040.0,107030.0,0.11020483]
[1748537319998,0.18833776,107040.0,107030.0,0.11020483]
[1748537320205,0.18933776,107040.0,107030.0,0.11020483]
[1748537320628,0.27989776,107040.0,107030.0,0.40108483]
[1748537320887,0.27989776,107040.0,107030.0,0.3999228]
[1748537321526,0.27989776,107040.0,107030.0,0.399923]
[1748537322436,0.18933776,107040.0,107030.0,0.415923]
[1748537322659,0.00249173,107040.0,107030.0,2.16054685]
[1748537322882,0.00249173,107040.0,107030.0,2.16407312]
[1748537323324,0.00249173,107040.0,107030.0,2.16411312]
[1748537324175,0.00249173,107040.0,107030.0,2.16058685]
[1748537324381,0.00149173,107040.0,107030.0,2.16411312]
[1748537324587,0.00049173,107040.0,107030.0,2.16411312]
[1748537324795,0.00049173,107040.0,107030.0,2.16711312]
[1748537325004,0.00049173,107040.0,107030.0,2.16558685]
[1748537325218,0.00049173,107040.0,107030.0,1.40385707]
[1748537325426,0.00049173,107040.0,107030.0,1.4003308]
[1748537325630,0.00049173,107040.0,107030.0,1.4003303]
[1748537326715,0.00983324,107040.0,107030.0,1.4003303]
[1748537326924,0.00049173,107040.0,107030.0,1.4003303]
[1748537327546,0.00049173,107040.0,107030.0,1.40958989]
[1748537328174,0.00041173,107040.0,107030.0,1.40958989]
[1748537328589,0.00975324,107040.0,107030.0,1.40958989]
[1748537328775,0.01909493,107040.0,107030.0,1.40958989]
[1748537329021,0.00975324,107040.0,107030.0,1.40958989]
[1748537329241,0.31290174,107040.0,107030.0,0.0990825]
[1748537329452,0.31290174,107040.0,107030.0,0.38988302]
[1748537329664,0.31290174,107040.0,107030.0,0.38988293]
[1748537329891,0.31290174,107040.0,107030.0,0.38689395]
[1748537330103,0.22234174,107040.0,107030.0,0.38689395]
[1748537330316,0.31286174,107040.0,107030.0,0.09609395]
[1748537330531,0.31286174,107040.0,107030.0,0.38689395]
[1748537331212,0.31286174,107040.0,107030.0,0.09609395]
[1748537331420,0.31286174,107040.0,107030.0,0.38689395]
[1748537332717,0.31286174,107040.0,107030.0,0.09609395]
[1748537333160,0.31286174,107040.0,107030.0,0.38689395]
[1748537333405,0.32936174,107040.0,107030.0,0.00504]
[1748537333630,0.32936174,107040.0,107030.0,0.29584]
[1748537334511,0.32936174,107040.0,107030.0,0.00504]
[1748537334724,0.32936174,107040.0,107030.0,0.29384]
[1748537334942,0.32936174,107040.0,107030.0,0.29084]
[1748537335788,0.32936174,107040.0,107030.0,0.29184]
[1748537336625,0.73288174,107040.0,107030.0,0.29184]
[1748537342292,0.73288174,107040.0,107030.0,0.00104]
[1748537342528,1.16393569,107040.0,107030.0,0.00104]
[1748537343396,0.98236174,107040.0,107030.0,0.00104]
[1748537343631,1.07284174,107040.0,107030.0,0.00104]
[1748537344097,1.07584174,107040.0,107030.0,4e-05]
[1748537344529,1.07484174,107040.0,107030.0,4e-05]
[1748537344754,1.07884174,107040.0,107030.0,0.00104]
[1748537344972,1.07684174,107040.0,107030.0,0.00104]
[1748537345186,1.07984174,107040.0,107030.0,0.00104]
[1748537345618,0.98936174,107040.0,107030.0,0.00104]
[1748537345843,1.07988174,107040.0,107030.0,0.00104]
[1748537346071,0.98936174,107040.0,107030.0,0.00104]
[1748537346402,1.07988174,107040.0,107030.0,0.00104]
[1748537346625,1.17093569,107040.0,107030.0,0.00104]
[1748537348645,0.56186843,107020.0,107010.0,4e-05]
[1748537348871,0.57716843,107020.0,107010.0,4e-05]
[1748537349097,0.66768843,107020.0,107010.0,4e-05]
[1748537349318,0.75874238,107020.0,107010.0,4e-05]
[1748537350476,0.75974238,107020.0,107010.0,4e-05]
[1748537351349,0.76174238,107020.0,107010.0,4e-05]
[1748537351859,0.66366685,107020.0,107010.0,4e-05]
[1748537353449,0.20856843,107020.0,107010.0,0.29116]
[1748537353691,0.20856843,107020.0,107010.0,0.30636]
[1748537353927,0.29908843,107020.0,107010.0,0.30636]
[1748537354440,0.29908843,107020.0,107010.0,0.39741395]
[1748537355343,0.29908843,107020.0,107010.0,0.10629395]
[1748537355573,0.29908843,107020.0,107010.0,0.39733395]
[1748537355803,0.29908843,107020.0,107010.0,0.01524]
[1748537356029,0.33108843,107020.0,107010.0,0.29112]
[1748537356699,0.31568843,107020.0,107010.0,0.29112]
[1748537357165,0.67188843,107020.0,107010.0,4e-05]
[1748537357600,0.76294238,107020.0,107010.0,4e-05]
[1748537373480,0.20562607,106990.0,106980.0,0.0906398]
[1748537373690,0.20562607,106990.0,106980.0,0.3815198]
[1748537373691,0.29614607,106990.0,106980.0,0.3815198]
[1748537374750,0.29614607,106990.0,106980.0,0.38159979]
[1748537375506,0.29614607,106990.0,106980.0,0.30675999]
[1748537375915,0.29614607,106990.0,106980.0,0.30775999]
[1748537376123,0.29614607,106990.0,106980.0,0.30875999]
[1748537376507,0.29614607,106990.0,106980.0,0.00207999]
[1748537376715,0.31224607,106990.0,106980.0,0.29295999]
[1748537377332,0.31224607,106990.0,106980.0,0.00207999]
[1748537377455,0.31224607,106990.0,106980.0,0.29295999]
[1748537377655,0.22172607,106990.0,106980.0,0.00207999]
[1748537377923,0.01869621,106970.0,106960.0,8e-05]
[1748537378168,0.76136051,106970.0,106960.0,0.00022758]
[1748537378397,0.75843846,106970.0,106960.0,0.00022758]
[1748537378623,0.56156451,106970.0,106960.0,0.00022758]
[1748537378831,0.94938451,106970.0,106960.0,0.01652758]
[1748537379046,1.03990451,106970.0,106960.0,0.01652758]
[1748537379259,1.03990451,106970.0,106960.0,0.01952758]
[1748537379483,1.04190451,106970.0,106960.0,0.01952758]
[1748537379878,1.04190451,106970.0,106960.0,0.01652758]
[1748537380086,1.04190451,106970.0,106960.0,0.30740758]
[1748537381007,0.95338451,106970.0,106960.0,0.30740758]
[1748537381209,1.04390451,106970.0,106960.0,0.30740758]
[1748537382099,0.30018451,106970.0,106960.0,0.41436153]
[1748537382293,0.30953292,106970.0,106960.0,0.62523727]
[1748537382464,0.30953292,106970.0,106960.0,0.61588816]
[1748537382742,0.30953292,106970.0,106960.0,0.62523744]
[1748537382883,0.30018495,106970.0,106960.0,0.62523744]
[1748537383314,0.20966495,106970.0,106960.0,0.63458664]
[1748537383536,0.20966495,106970.0,106960.0,0.42890238]
[1748537383751,0.20766495,106970.0,106960.0,0.42894238]
[1748537384147,0.20966495,106970.0,106960.0,0.42894238]
[1748537384596,0.20766495,106970.0,106960.0,0.42894238]
[1748537384986,0.20866495,106970.0,106960.0,0.42894238]
[1748537385310,0.20866495,106970.0,106960.0,0.62527727]
[1748537385545,0.20866495,106970.0,106960.0,0.6346262]
[1748537385782,0.20866495,106970.0,106960.0,0.62527727]
[1748537385989,0.19931671,106970.0,106960.0,0.62527744]
[1748537386759,0.19931671,106970.0,106960.0,0.6439754]
[1748537386960,0.19931671,106970.0,106960.0,0.64397557]
[1748537387362,0.19931671,106970.0,106960.0,0.63462655]
[1748537387567,0.19931671,106970.0,106960.0,0.62527744]
[1748537388058,0.15931671,106970.0,106960.0,0.63462664]
[1748537388944,0.1499683,106970.0,106960.0,0.63462664]
[1748537389277,0.1499683,106970.0,106960.0,0.14737166]
[1748537389495,0.1499683,106970.0,106960.0,0.42894238]
[1748537389767,0.15931671,106970.0,106960.0,0.63462646]
[1748537389978,0.15931671,106970.0,106960.0,0.62527744]
[1748537390648,0.15931671,106970.0,106960.0,0.43829166]
[1748537391163,0.15931671,106970.0,106960.0,0.42894238]
[1748537393437,0.15931671,106970.0,106960.0,0.61592816]
[1748537393690,0.15931671,106970.0,106960.0,0.42894238]
[1748537395199,0.11931671,106970.0,106960.0,0.42894238]
[1748537399459,0.11931671,106970.0,106960.0,0.12212238]
[1748537399676,0.12223824,106970.0,106960.0,0.38220153]
[1748537399909,0.12223824,106970.0,106960.0,0.39850153]
[1748537400130,0.12223824,106970.0,106960.0,0.01652758]
[1748537400345,0.12223824,106970.0,106960.0,0.00022758]
[1748537400569,0.13883824,106970.0,106960.0,0.29110758]
[1748537401438,0.13883824,106970.0,106960.0,0.00022758]
[1748537401656,0.13883824,106970.0,106960.0,0.29110758]
[1748537402329,0.09883824,106970.0,106960.0,0.29110758]
[1748537404129,0.09883824,106970.0,106960.0,0.00022758]
[1748537404345,0.09883824,106970.0,106960.0,0.29114758]
[1748537405448,0.08223824,106970.0,106960.0,0.30764758]
[1748537406540,0.08223824,106970.0,106960.0,0.29114758]
[1748537407565,0.11403824,106970.0,106960.0,0.29114758]
[1748537408017,0.11403824,106970.0,106960.0,0.00022758]
[1748537408230,0.11403824,106970.0,106960.0,0.29114758]
[1748537409160,0.11403824,106970.0,106960.0,0.00022758]
[1748537409386,0.04706994,106970.0,106960.0,0.29114758]
[1748537409597,0.23403824,106970.0,106960.0,0.29114758]
[1748537409809,0.23111671,106970.0,106960.0,0.29114758]
[1748537410035,0.23111671,106970.0,106960.0,0.00022758]
[1748537410262,0.23111671,106970.0,106960.0,0.29114758]
[1748537413775,0.32163671,106970.0,106960.0,0.29114758]
[1748537413998,0.30603671,106970.0,106960.0,0.29114758]
[1748537414236,0.32233671,106970.0,106960.0,0.29114758]
[1748537414895,0.66233671,106970.0,106960.0,0.00022758]
[1748537415125,0.76263958,106970.0,106960.0,0.00022758]
[1748537415807,0.79070358,106970.0,106960.0,0.00022758]
[1748537419121,1.19454358,106970.0,106960.0,0.00022758]
[1748537419562,1.68244358,106970.0,106960.0,0.00022758]
[1748537420479,1.74698249,106970.0,106960.0,0.00022758]
[1748537421134,1.74498249,106970.0,106960.0,0.00022758]
[1748537421321,1.74598249,106970.0,106960.0,0.00122758]
[1748537421558,1.74798249,106970.0,106960.0,0.00122758]
[1748537421801,1.74598249,106970.0,106960.0,0.00022758]
[1748537422027,1.74798249,106970.0,106960.0,0.00122758]
[1748537422243,1.75098249,106970.0,106960.0,0.00122758]
[1748537422460,0.00934902,106960.0,106950.0,4e-05]
[1748537422680,1.15826043,106960.0,106950.0,0.00051136]
[1748537422890,1.15533786,106960.0,106950.0,0.00051136]
[1748537423569,0.66743786,106960.0,106950.0,0.00051136]
[1748537424443,0.66943786,106960.0,106950.0,0.00051136]
[1748537424656,0.67243786,106960.0,106950.0,0.00151136]
[1748537425539,0.9894114,106960.0,106950.0,0.00151136]
[1748537425754,1.06078391,106960.0,106950.0,0.00151136]
[1748537425965,1.06078391,106960.0,106950.0,0.01661136]
[1748537426392,1.06078391,106960.0,106950.0,0.00151136]
[1748537427237,1.07588391,106960.0,106950.0,0.00151136]
[1748537427451,1.16693786,106960.0,106950.0,0.00151136]
[1748537427662,1.16693786,106960.0,106950.0,0.29287136]
[1748537428363,1.16693786,106960.0,106950.0,0.00151136]
[1748537429256,1.16693786,106960.0,106950.0,0.29275136]
[1748537429892,1.09483666,106960.0,106950.0,0.29275136]
[1748537430099,1.18535666,106960.0,106950.0,0.29275136]
[1748537430525,1.09483666,106960.0,106950.0,0.29275136]
[1748537430748,1.09483666,106960.0,106950.0,0.00151136]
[1748537431168,1.18535666,106960.0,106950.0,0.00151136]
[1748537436219,1.21342566,106960.0,106950.0,0.00151136]
[1748537436682,0.58038681,106910.0,106900.0,4e-05]
[1748537436917,0.74325441,106910.0,106900.0,4e-05]
[1748537437151,0.65273441,106910.0,106900.0,0.00051277]
[1748537437370,0.68081441,106910.0,106900.0,0.00051277]
[1748537437584,0.69671441,106910.0,106900.0,0.00051277]
[1748537438271,0.69671441,106910.0,106900.0,0.00151277]
[1748537438272,0.70171441,106910.0,106900.0,0.00151277]
[1748537438483,0.72819738,106910.0,106900.0,0.00151277]
[1748537438710,0.72319738,106910.0,106900.0,0.00051277]
[1748537438935,0.70371441,106910.0,106900.0,0.00151277]
[1748537439153,0.68781441,106910.0,106900.0,0.00151277]
[1748537440716,0.69281441,106910.0,106900.0,0.29407277]
[1748537440943,0.70851441,106910.0,106900.0,0.29407277]